Workbook

Sheet 01 01 KL
A1: POLOŽKOVÝ ROZPOČET
A2: Rozpočet | C2: 01 | F2: JKSO
A4: Objekt | F4: SKP
A5: 01 | F5: Měrná jednotka
A6: Stavba | F6: Počet jednotek | G6: 0
A7: Červ1708 | C7: Odvlhčení zámku Vyškov | F7: Náklady na m.j. | G7: =IF(G6=0,,ROUND((F30+F32)/G6,1)) -> 0
A8: Projektant | C8: Ing.Jan Červenák | F8: Typ rozpočtu
A9: Zpracovatel projektu
A10: Objednatel | C10: Muzeum Vyškovska
A11: Dodavatel | C11: bude určen výběrovým řízením | F11: Zakázkové číslo
A12: Rozpočtoval | F12: Počet listů
A13: ROZPOČTOVÉ NÁKLADY
A14: Základní rozpočtové náklady | D14: Ostatní rozpočtové náklady
B15: HSV celkem | C15: ='01 01 Rek'!E21 -> 0 | D15: ='01 01 Rek'!A26 -> Ztížené výrobní podmínky | G15: ='01 01 Rek'!I26 -> 0
A16: Z | B16: PSV celkem | C16: ='01 01 Rek'!F21 -> 0 | D16: ='01 01 Rek'!A27 -> Oborová přirážka | G16: ='01 01 Rek'!I27 -> 0
A17: R | B17: M práce celkem | C17: ='01 01 Rek'!H21 -> 0 | D17: ='01 01 Rek'!A28 -> Přesun stavebních kapacit | G17: ='01 01 Rek'!I28 -> 0
A18: N | B18: M dodávky celkem | C18: ='01 01 Rek'!G21 -> 0 | D18: ='01 01 Rek'!A29 -> Mimostaveništní doprava | G18: ='01 01 Rek'!I29 -> 0
A19: ZRN celkem | C19: =SUM(C15:C18) -> 0 | D19: ='01 01 Rek'!A30 -> Zařízení staveniště | G19: ='01 01 Rek'!I30 -> 0
D20: ='01 01 Rek'!A31 -> Provoz investora | G20: ='01 01 Rek'!I31 -> 0
A21: HZS | C21: ='01 01 Rek'!I21 -> 0 | D21: ='01 01 Rek'!A32 -> Kompletační činnost (IČD) | G21: ='01 01 Rek'!I32 -> 0
A22: ZRN+HZS | C22: =C19+C21 -> 0 | D22: Ostatní náklady neuvedené | G22: =G23-SUM(G15:G21) -> 0
A23: ZRN+ost.náklady+HZS | C23: =C22+G23 -> 0 | D23: Ostatní náklady celkem | G23: ='01 01 Rek'!H34 -> 0
A24: Vypracoval | D24: Za zhotovitele | F24: Za objednatele
A25: Jméno : | D25: Jméno : | F25: Jméno :
A26: Datum : | D26: Datum : | F26: Datum :
A28: Podpis : | D28: Podpis: | F28: Podpis:
A30: Základ pro DPH | C30: 21 | D30: % | F30: =C23-F32 -> 0
A31: DPH | C31: =C30 -> 21 | D31: % | F31: =ROUND(PRODUCT(F30,C31/100),0) -> 0
A32: Základ pro DPH | C32: 0 | D32: % | F32: 0
A33: DPH | C33: =C32 -> 0 | D33: % | F33: =ROUND(PRODUCT(F32,C33/100),0) -> 0
A34: CENA ZA OBJEKT CELKEM | F34: =ROUND(SUM(F30:F33),0) -> 0
A36: Poznámka :

Sheet 01 01 Rek
A1: Stavba : | C1: Červ1708 Odvlhčení zámku Vyškov | G1: Rozpočet : | H1: 01
A2: Objekt : | C2: 01 venkovní a vnitřní
A4: REKAPITULACE STAVEBNÍCH DÍLŮ
B6: Stavební díl | E6: HSV | F6: PSV | G6: Dodávka | H6: Montáž | I6: HZS
A7: ='01 01 Pol'!B7 -> 1 | B7: ='01 01 Pol'!C7 -> Zemní práce | E7: ='01 01 Pol'!$G$25 -> 0 | F7: ='01 01 Pol'!BB25 -> 0 | G7: ='01 01 Pol'!BC25 -> 0 | H7: ='01 01 Pol'!BD25 -> 0 | I7: ='01 01 Pol'!BE25 -> 0
A8: ='01 01 Pol'!B26 -> 2 | B8: ='01 01 Pol'!C26 -> Základy a zvláštní zakládání | E8: ='01 01 Pol'!BA31 -> 0 | F8: ='01 01 Pol'!BB31 -> 0 | G8: ='01 01 Pol'!BC31 -> 0 | H8: ='01 01 Pol'!BD31 -> 0 | I8: ='01 01 Pol'!BE31 -> 0
A9: ='01 01 Pol'!B32 -> 3 | B9: ='01 01 Pol'!C32 -> Svislé a kompletní konstrukce | E9: ='01 01 Pol'!$G$36 -> 0 | F9: ='01 01 Pol'!BB36 -> 0 | G9: ='01 01 Pol'!BC36 -> 0 | H9: ='01 01 Pol'!BD36 -> 0 | I9: ='01 01 Pol'!BE36 -> 0
A10: ='01 01 Pol'!B37 -> 5 | B10: ='01 01 Pol'!C37 -> Komunikace | E10: ='01 01 Pol'!BA40 -> 0 | F10: ='01 01 Pol'!BB40 -> 0 | G10: ='01 01 Pol'!BC40 -> 0 | H10: ='01 01 Pol'!BD40 -> 0 | I10: ='01 01 Pol'!BE40 -> 0
A11: ='01 01 Pol'!B41 -> 62 | B11: ='01 01 Pol'!C41 -> Úpravy povrchů vnitřní a vnější | E11: ='01 01 Pol'!BA47 -> 0 | F11: ='01 01 Pol'!BB47 -> 0 | G11: ='01 01 Pol'!BC47 -> 0 | H11: ='01 01 Pol'!BD47 -> 0 | I11: ='01 01 Pol'!BE47 -> 0
A12: ='01 01 Pol'!B48 -> 8 | B12: ='01 01 Pol'!C48 -> Trubní vedení | E12: ='01 01 Pol'!BA52 -> 0 | F12: ='01 01 Pol'!BB52 -> 0 | G12: ='01 01 Pol'!BC52 -> 0 | H12: ='01 01 Pol'!BD52 -> 0 | I12: ='01 01 Pol'!BE52 -> 0
A13: ='01 01 Pol'!B53 -> 91 | B13: ='01 01 Pol'!C53 -> Doplňující práce na komunikaci | E13: ='01 01 Pol'!BA57 -> 0 | F13: ='01 01 Pol'!BB57 -> 0 | G13: ='01 01 Pol'!BC57 -> 0 | H13: ='01 01 Pol'!BD57 -> 0 | I13: ='01 01 Pol'!BE57 -> 0
A14: 95 | B14: Dokončovací konstrukce na poz. stav. | E14: ='01 01 Pol'!$G$61 -> 0 | F14: 0 | G14: 0 | H14: 0 | I14: 0
A15: ='01 01 Pol'!B62 -> 97 | B15: ='01 01 Pol'!C62 -> Prorážení otvorů | E15: ='01 01 Pol'!BA65 -> 0 | F15: ='01 01 Pol'!BB65 -> 0 | G15: ='01 01 Pol'!BC65 -> 0 | H15: ='01 01 Pol'!BD65 -> 0 | I15: ='01 01 Pol'!BE65 -> 0
A16: ='01 01 Pol'!B66 -> 99 | B16: ='01 01 Pol'!C66 -> Staveništní přesun hmot | E16: ='01 01 Pol'!BA69 -> 0 | F16: ='01 01 Pol'!BB69 -> 0 | G16: ='01 01 Pol'!BC69 -> 0 | H16: ='01 01 Pol'!BD69 -> 0 | I16: ='01 01 Pol'!BE69 -> 0
A17: ='01 01 Pol'!B70 -> 711 | B17: ='01 01 Pol'!C70 -> Izolace proti vodě vnější a vnitřní | E17: ='01 01 Pol'!BA82 -> 0 | F17: ='01 01 Pol'!BB82 -> 0 | G17: ='01 01 Pol'!BC82 -> 0 | H17: ='01 01 Pol'!BD82 -> 0 | I17: ='01 01 Pol'!BE82 -> 0
A18: ='01 01 Pol'!B83 -> 764 | B18: ='01 01 Pol'!C83 -> Konstrukce klempířské | E18: ='01 01 Pol'!BA88 -> 0 | F18: ='01 01 Pol'!BB88 -> 0 | G18: ='01 01 Pol'!BC88 -> 0 | H18: ='01 01 Pol'!BD88 -> 0 | I18: ='01 01 Pol'!BE88 -> 0
A19: 784 | B19: Malby | E19: 0 | F19: ='01 01 Pol'!$G$91 -> 0 | G19: 0 | H19: 0 | I19: 0
A20: ='01 01 Pol'!B92 -> D96 | B20: ='01 01 Pol'!C92 -> Přesuny suti a vybouraných hmot | E20: ='01 01 Pol'!BA100 -> 0 | F20: ='01 01 Pol'!BB100 -> 0 | G20: ='01 01 Pol'!BC100 -> 0 | H20: ='01 01 Pol'!BD100 -> 0 | I20: ='01 01 Pol'!BE100 -> 0
B21: CELKEM OBJEKT | E21: =SUM(E7:E20) -> 0 | F21: =SUM(F7:F20) -> 0 | G21: =SUM(G7:G20) -> 0 | H21: =SUM(H7:H20) -> 0 | I21: =SUM(I7:I20) -> 0
A23: VEDLEJŠÍ ROZPOČTOVÉ NÁKLADY
A25: Název VRN | E25: Kč | F25: % | G25: Základna | I25: Kč
A26: Ztížené výrobní podmínky | E26: 0 | F26: 2 | G26: =SUM(E21+F21+G21+H21+I21) -> 0 | I26: =E26+F26*G26/100 -> 0 | BA26: 2
A27: Oborová přirážka | E27: 0 | F27: 0 | G27: =$G$26 -> 0 | I27: 0 | BA27: 2
A28: Přesun stavebních kapacit | E28: 0 | F28: 0 | G28: =$G$26 -> 0 | I28: 0 | BA28: 2
A29: Mimostaveništní doprava | E29: 0 | F29: 0 | G29: 0 | I29: 0 | BA29: 2
A30: Zařízení staveniště | E30: 0 | F30: 2 | G30: 0 | I30: 0 | BA30: 2
A31: Provoz investora | E31: 0 | F31: 1 | G31: 0 | I31: 0 | BA31: 2
A32: Kompletační činnost (IČD) | E32: 0 | F32: 1 | G32: 0 | I32: 0 | BA32: 2
A33: Rezerva rozpočtu | E33: 0 | F33: 0 | G33: 0 | I33: 0 | BA33: 2
B34: CELKEM VRN | H34: =SUM(I26:I33) -> 0

Sheet 01 01 Pol
A1: Položkový rozpočet
A3: Stavba : | C3: Červ1708 Odvlhčení zámku Vyškov | D3: Rozpočet: | E3: ='01 01 Rek'!H1 -> 01
A4: Objekt : | C4: 01 venkovní + vnitřní
A6: P.č. | B6: Číslo položky | C6: Název položky | D6: MJ | E6: množství | F6: cena / MJ | G6: celkem (Kč) | H6: Jednotková hmotnost | I6: Celková hmotnost | J6: Jednotková dem.hmot. | K6: Celková dem.hmot.
A7: Díl: | B7: 1 | C7: Zemní práce | O7: 1
A8: 1 | B8: 130001101R00 | C8: Příplatek za ztížené hloubení v blízkosti vedení | D8: m3 | E8: 42.5 | G8: =E8*F8 -> 0 | H8: 0 | I8: =E8*H8 -> 0 | J8: 0 | K8: =E8*J8 -> 0 | O8: 2 | AA8: 1 | AB8: 1 | AC8: 1 | AZ8: 1 | BA8: =IF(AZ8=1,G8,0) -> 0 | BB8: =IF(AZ8=2,G8,0) -> 0 | BC8: =IF(AZ8=3,G8,0) -> 0 | BD8: =IF(AZ8=4,G8,0) -> 0 | BE8: =IF(AZ8=5,G8,0) -> 0 | CA8: 1 | CB8: 1
A9: 2 | B9: 132201201R00 | C9: Hloubení rýh šířky do 200 cm v hor.3 do 100 m3 | D9: m3 | E9: 42.5 | G9: =E9*F9 -> 0 | H9: 0 | I9: =E9*H9 -> 0 | J9: 0 | K9: =E9*J9 -> 0 | O9: 2 | AA9: 1 | AB9: 1 | AC9: 1 | AZ9: 1 | BA9: =IF(AZ9=1,G9,0) -> 0 | BB9: =IF(AZ9=2,G9,0) -> 0 | BC9: =IF(AZ9=3,G9,0) -> 0 | BD9: =IF(AZ9=4,G9,0) -> 0 | BE9: =IF(AZ9=5,G9,0) -> 0 | CA9: 1 | CB9: 1
A10: 3 | B10: 132201202R00 | C10: výkop 0,5x0,6 | D10: m3 | E10: 10.17 | G10: =SUM(F10*E10) -> 0
A11: 4 | B11: 162201203R00 | C11: Vodorovné přemíst.výkopku, kolečko hor.1-4, do 10m | D11: m3 | E11: 36.3 | G11: =E11*F11 -> 0 | H11: 0 | I11: =E11*H11 -> 0 | J11: 0 | K11: =E11*J11 -> 0 | O11: 2 | AA11: 1 | AB11: 1 | AC11: 1 | AZ11: 1 | BA11: =IF(AZ11=1,G11,0) -> 0 | BB11: =IF(AZ11=2,G11,0) -> 0 | BC11: =IF(AZ11=3,G11,0) -> 0 | BD11: =IF(AZ11=4,G11,0) -> 0 | BE11: =IF(AZ11=5,G11,0) -> 0 | CA11: 1 | CB11: 1
C12: zemina pro zásyp tam a zpět: | E12: 0 | M12: zemina pro zásyp tam a zpět:
A13: 5 | B13: 162701105R00 | C13: Vodorovné přemístění výkopku z hor.1-4 do 10000 m | D13: m3 | E13: 7.8 | G13: =E13*F13 -> 0 | H13: 0 | I13: =E13*H13 -> 0 | J13: 0 | K13: =E13*J13 -> 0 | O13: 2 | AA13: 1 | AB13: 1 | AC13: 1 | AZ13: 1 | BA13: =IF(AZ13=1,G13,0) -> 0 | BB13: =IF(AZ13=2,G13,0) -> 0 | BC13: =IF(AZ13=3,G13,0) -> 0 | BD13: =IF(AZ13=4,G13,0) -> 0 | BE13: =IF(AZ13=5,G13,0) -> 0 | CA13: 1 | CB13: 1
C14: přebytečná zemina: | E14: 0 | M14: přebytečná zemina:
A15: 6 | B15: 162701109R00 | C15: Příplatek k vod. přemístění hor.1-4 za další 1 km | D15: m3 | E15: 78.8 | G15: =E15*F15 -> 0 | H15: 0 | I15: =E15*H15 -> 0 | J15: 0 | K15: =E15*J15 -> 0 | O15: 2 | AA15: 1 | AB15: 1 | AC15: 1 | AZ15: 1 | BA15: =IF(AZ15=1,G15,0) -> 0 | BB15: =IF(AZ15=2,G15,0) -> 0 | BC15: =IF(AZ15=3,G15,0) -> 0 | BD15: =IF(AZ15=4,G15,0) -> 0 | BE15: =IF(AZ15=5,G15,0) -> 0 | CA15: 1 | CB15: 1
A16: 7 | B16: 167101101R00 | C16: Nakládání výkopku z hor.1-4 v množství do 100 m3 | D16: m3 | E16: 22.8 | G16: =E16*F16 -> 0 | H16: 0 | I16: =E16*H16 -> 0 | J16: 0 | K16: =E16*J16 -> 0 | O16: 2 | AA16: 1 | AB16: 1 | AC16: 1 | AZ16: 1 | BA16: =IF(AZ16=1,G16,0) -> 0 | BB16: =IF(AZ16=2,G16,0) -> 0 | BC16: =IF(AZ16=3,G16,0) -> 0 | BD16: =IF(AZ16=4,G16,0) -> 0 | BE16: =IF(AZ16=5,G16,0) -> 0 | CA16: 1 | CB16: 1
C17: zemina pro zásyp: | E17: 0 | M17: zemina pro zásyp:
A18: 8 | B18: 171201201R00 | C18: Uložení sypaniny na skl.-modelace na výšku přes 2m | D18: m3 | E18: 9.92 | G18: =E18*F18 -> 0 | H18: 0 | I18: =E18*H18 -> 0 | J18: 0 | K18: =E18*J18 -> 0 | O18: 2 | AA18: 1 | AB18: 1 | AC18: 1 | AZ18: 1 | BA18: =IF(AZ18=1,G18,0) -> 0 | BB18: =IF(AZ18=2,G18,0) -> 0 | BC18: =IF(AZ18=3,G18,0) -> 0 | BD18: =IF(AZ18=4,G18,0) -> 0 | BE18: =IF(AZ18=5,G18,0) -> 0 | CA18: 1 | CB18: 1
A19: 9 | B19: 174101101R00 | C19: Zásyp jam, rýh, šachet se zhutněním | D19: m3 | E19: 32.7 | G19: =E19*F19 -> 0 | H19: 0 | I19: =E19*H19 -> 0 | J19: 0 | K19: =E19*J19 -> 0 | O19: 2 | AA19: 1 | AB19: 1 | AC19: 1 | AZ19: 1 | BA19: =IF(AZ19=1,G19,0) -> 0 | BB19: =IF(AZ19=2,G19,0) -> 0 | BC19: =IF(AZ19=3,G19,0) -> 0 | BD19: =IF(AZ19=4,G19,0) -> 0 | BE19: =IF(AZ19=5,G19,0) -> 0 | CA19: 1 | CB19: 1
C20: zemina: | E20: 0 | M20: zemina:
C21: štěrkový zásyp: | E21: 0 | M21: štěrkový zásyp:
A22: 10 | B22: 199000002R00 | C22: Poplatek za skládku horniny 1- 4 | D22: m3 | E22: 7.8 | G22: =E22*F22 -> 0 | H22: 0 | I22: =E22*H22 -> 0 | J22: 0 | K22: =E22*J22 -> 0 | O22: 2 | AA22: 1 | AB22: 1 | AC22: 1 | AZ22: 1 | BA22: =IF(AZ22=1,G22,0) -> 0 | BB22: =IF(AZ22=2,G22,0) -> 0 | BC22: =IF(AZ22=3,G22,0) -> 0 | BD22: =IF(AZ22=4,G22,0) -> 0 | BE22: =IF(AZ22=5,G22,0) -> 0 | CA22: 1 | CB22: 1
A23: 11 | B23: 58337345 | C23: Štěrkopísek frakce 0-32 C | D23: T | E23: 15.48 | G23: =E23*F23 -> 0 | H23: 1 | I23: =E23*H23 -> 15.48 | K23: =E23*J23 -> 0 | O23: 2 | AA23: 3 | AB23: 1 | AC23: 58337345 | AZ23: 1 | BA23: =IF(AZ23=1,G23,0) -> 0 | BB23: =IF(AZ23=2,G23,0) -> 0 | BC23: =IF(AZ23=3,G23,0) -> 0 | BD23: =IF(AZ23=4,G23,0) -> 0 | BE23: =IF(AZ23=5,G23,0) -> 0 | CA23: 3 | CB23: 1
C24: štěrkový zásyp: | E24: 0 | M24: štěrkový zásyp:
B25: Celkem za | C25: 1 Zemní práce | G25: =SUM(G7:G24) -> 0 | I25: =SUM(I7:I24) -> 15.48 | K25: =SUM(K7:K24) -> 0 | O25: 4 | BA25: =SUM(BA7:BA24) -> 0 | BB25: =SUM(BB7:BB24) -> 0 | BC25: =SUM(BC7:BC24) -> 0 | BD25: =SUM(BD7:BD24) -> 0 | BE25: =SUM(BE7:BE24) -> 0
A26: Díl: | B26: 2 | C26: Základy a zvláštní zakládání | O26: 1
A27: 12 | B27: 212792112R00 | C27: Montáž trativodů z flexibilních trubek, lože | D27: m | E27: 37 | G27: =E27*F27 -> 0 | H27: 0.22107 | I27: =E27*H27 -> 8.17959 | J27: 0 | K27: =E27*J27 -> 0 | O27: 2 | AA27: 1 | AB27: 1 | AC27: 1 | AZ27: 1 | BA27: =IF(AZ27=1,G27,0) -> 0 | BB27: =IF(AZ27=2,G27,0) -> 0 | BC27: =IF(AZ27=3,G27,0) -> 0 | BD27: =IF(AZ27=4,G27,0) -> 0 | BE27: =IF(AZ27=5,G27,0) -> 0 | CA27: 1 | CB27: 1
A28: 13 | B28: 216904112R00 | C28: Očištění tlakovou vodou zdiva stěn | D28: m2 | E28: 35.7 | G28: =E28*F28 -> 0 | H28: 0.001 | I28: =E28*H28 -> 0.0357 | J28: 0 | K28: =E28*J28 -> 0 | O28: 2 | AA28: 1 | AB28: 1 | AC28: 1 | AZ28: 1 | BA28: =IF(AZ28=1,G28,0) -> 0 | BB28: =IF(AZ28=2,G28,0) -> 0 | BC28: =IF(AZ28=3,G28,0) -> 0 | BD28: =IF(AZ28=4,G28,0) -> 0 | BE28: =IF(AZ28=5,G28,0) -> 0 | CA28: 1 | CB28: 1
A29: 14 | B29: 216904391R00 | C29: Přípl za ruční dočištění oc kartáči | D29: m2 | E29: 35.7 | G29: =E29*F29 -> 0 | H29: 0 | I29: =E29*H29 -> 0 | J29: 0 | K29: =E29*J29 -> 0 | O29: 2 | AA29: 1 | AB29: 1 | AC29: 1 | AZ29: 1 | BA29: =IF(AZ29=1,G29,0) -> 0 | BB29: =IF(AZ29=2,G29,0) -> 0 | BC29: =IF(AZ29=3,G29,0) -> 0 | BD29: =IF(AZ29=4,G29,0) -> 0 | BE29: =IF(AZ29=5,G29,0) -> 0 | CA29: 1 | CB29: 1
A30: 15 | B30: 28611223 | C30: Trubka PVC-U drenážní flexibilní DN 100 mm | D30: m | E30: 38 | G30: =E30*F30 -> 0 | H30: 0.00048 | I30: =E30*H30 -> 0.01824 | K30: =E30*J30 -> 0 | O30: 2 | AA30: 3 | AB30: 1 | AC30: 28611223 | AZ30: 1 | BA30: =IF(AZ30=1,G30,0) -> 0 | BB30: =IF(AZ30=2,G30,0) -> 0 | BC30: =IF(AZ30=3,G30,0) -> 0 | BD30: =IF(AZ30=4,G30,0) -> 0 | BE30: =IF(AZ30=5,G30,0) -> 0 | CA30: 3 | CB30: 1
B31: Celkem za | C31: 2 Základy a zvláštní zakládání | G31: =SUM(G26:G30) -> 0 | I31: =SUM(I26:I30) -> 8.23353 | K31: =SUM(K26:K30) -> 0 | O31: 4 | BA31: =SUM(BA26:BA30) -> 0 | BB31: =SUM(BB26:BB30) -> 0 | BC31: =SUM(BC26:BC30) -> 0 | BD31: =SUM(BD26:BD30) -> 0 | BE31: =SUM(BE26:BE30) -> 0
A32: Díl: | B32: 3 | C32: Svislé a kompletní konstrukce | O32: 1
A33: 16 | B33: 388129110R00 | C33: MT dílců kanálů ŽB tvaru L hm -0,25t | D33: kus | E33: 42 | G33: =E33*F33 -> 0 | H33: 0.04872 | I33: =E33*H33 -> 2.04624 | J33: 0 | K33: =E33*J33 -> 0 | O33: 2 | AA33: 1 | AB33: 0 | AC33: 0 | AZ33: 1 | BA33: =IF(AZ33=1,G33,0) -> 0 | BB33: =IF(AZ33=2,G33,0) -> 0 | BC33: =IF(AZ33=3,G33,0) -> 0 | BD33: =IF(AZ33=4,G33,0) -> 0 | BE33: =IF(AZ33=5,G33,0) -> 0 | CA33: 1 | CB33: 0
A34: 17 | B34: 388129120R00 | C34: Montáž dílců prefa. kanálů ze ŽB tvaru L do 0,5 t | D34: kus | E34: 1 | G34: =E34*F34 -> 0 | H34: 0.06551 | I34: =E34*H34 -> 0.06551 | J34: 0 | K34: =E34*J34 -> 0 | O34: 2 | AA34: 1 | AB34: 1 | AC34: 1 | AZ34: 1 | BA34: =IF(AZ34=1,G34,0) -> 0 | BB34: =IF(AZ34=2,G34,0) -> 0 | BC34: =IF(AZ34=3,G34,0) -> 0 | BD34: =IF(AZ34=4,G34,0) -> 0 | BE34: =IF(AZ34=5,G34,0) -> 0 | CA34: 1 | CB34: 1
A35: 18 | B35: 59385119 | C35: Tvarovka ES05-CSB přímá | D35: kus | E35: 42 | G35: =E35*F35 -> 0 | H35: 0.156 | I35: =E35*H35 -> 6.552 | K35: =E35*J35 -> 0 | O35: 2 | AA35: 3 | AB35: 1 | AC35: 59385119 | AZ35: 1 | BA35: =IF(AZ35=1,G35,0) -> 0 | BB35: =IF(AZ35=2,G35,0) -> 0 | BC35: =IF(AZ35=3,G35,0) -> 0 | BD35: =IF(AZ35=4,G35,0) -> 0 | BE35: =IF(AZ35=5,G35,0) -> 0 | CA35: 3 | CB35: 1
B36: Celkem za | C36: 3 Svislé a kompletní konstrukce | G36: =SUM(G32:G35) -> 0 | I36: =SUM(I32:I35) -> 8.66375 | K36: =SUM(K32:K35) -> 0 | O36: 4 | BA36: =SUM(BA32:BA35) -> 0 | BB36: =SUM(BB32:BB35) -> 0 | BC36: =SUM(BC32:BC35) -> 0 | BD36: =SUM(BD32:BD35) -> 0 | BE36: =SUM(BE32:BE35) -> 0
A37: Díl: | B37: 5 | C37: Komunikace | O37: 1
A38: 19 | B38: 591431111U00 | C38: Klad zámkové dlaž komunik včetně podkladních vrstev | D38: m2 | E38: 22 | G38: =E38*F38 -> 0 | H38: 0.15425 | I38: =E38*H38 -> 3.3935 | J38: 0 | K38: =E38*J38 -> 0 | O38: 2 | AA38: 1 | AB38: 1 | AC38: 1 | AZ38: 1 | BA38: =IF(AZ38=1,G38,0) -> 0 | BB38: =IF(AZ38=2,G38,0) -> 0 | BC38: =IF(AZ38=3,G38,0) -> 0 | BD38: =IF(AZ38=4,G38,0) -> 0 | BE38: =IF(AZ38=5,G38,0) -> 0 | CA38: 1 | CB38: 1
A39: 20 | B39: 591431111R00 | C39: demontáž stávající zámkové dlažby v místě VVK | D39: m2 | E39: 22
B40: Celkem za | C40: 5 Komunikace | G40: =SUM(G37:G38) -> 0 | I40: =SUM(I37:I38) -> 3.3935 | K40: =SUM(K37:K38) -> 0 | O40: 4 | BA40: =SUM(BA37:BA38) -> 0 | BB40: =SUM(BB37:BB38) -> 0 | BC40: =SUM(BC37:BC38) -> 0 | BD40: =SUM(BD37:BD38) -> 0 | BE40: =SUM(BE37:BE38) -> 0
A41: Díl: | B41: 62 | C41: Úpravy povrchů vnitřní a vnější | O41: 1
A42: 21 | B42: 622421121R00 | C42: podhoz sanační | D42: m2 | E42: 156 | G42: =E42*F42 -> 0 | H42: 0.04593 | I42: =E42*H42 -> 7.16508 | J42: 0 | K42: =E42*J42 -> 0 | O42: 2 | AA42: 1 | AB42: 1 | AC42: 1 | AZ42: 1 | BA42: =IF(AZ42=1,G42,0) -> 0 | BB42: =IF(AZ42=2,G42,0) -> 0 | BC42: =IF(AZ42=3,G42,0) -> 0 | BD42: =IF(AZ42=4,G42,0) -> 0 | BE42: =IF(AZ42=5,G42,0) -> 0 | CA42: 1 | CB42: 1
A43: 22 | B43: 622421122R00 | C43: kapilárně aktivní omítkový systém např. remmers tl. 30mm | D43: m2 | E43: 156 | G43: =E43*F43 -> 0 | M43: srovnávací omítkový pás:
A44: 23 | B44: 622421123R00 | C44: Sanační štuk ( feinputz) | D44: m2 | E44: 156 | G44: =E44*F44 -> 0
A45: 24 | B45: 627452124R00 | C45: Vyplnění spár hrubou maltou apř. RM RZ Historic Grob | D45: m2 | E45: 209 | G45: =E45*F45 -> 0 | H45: 0.02214 | I45: =E45*H45 -> 4.62726 | J45: 0 | K45: =E45*J45 -> 0 | O45: 2 | AA45: 1 | AB45: 1 | AC45: 1 | AZ45: 1 | BA45: =IF(AZ45=1,G45,0) -> 0 | BB45: =IF(AZ45=2,G45,0) -> 0 | BC45: =IF(AZ45=3,G45,0) -> 0 | BD45: =IF(AZ45=4,G45,0) -> 0 | BE45: =IF(AZ45=5,G45,0) -> 0 | CA45: 1 | CB45: 1
A46: 25 | B46: 622421125R00 | C46: kapilárně aktivní omítkový systém např. remmers tl. 30mm | D46: m2 | E46: 209
B47: Celkem za | C47: 62 Úpravy povrchů vnější | G47: =SUM(G41:G45) -> 0 | I47: =SUM(I41:I45) -> 11.79234 | K47: =SUM(K41:K45) -> 0 | O47: 4 | BA47: =SUM(BA41:BA45) -> 0 | BB47: =SUM(BB41:BB45) -> 0 | BC47: =SUM(BC41:BC45) -> 0 | BD47: =SUM(BD41:BD45) -> 0 | BE47: =SUM(BE41:BE45) -> 0
A48: Díl: | B48: 8 | C48: Trubní vedení | O48: 1
A49: 26 | B49: 899661311R00 | C49: Zřízení filtračního obalu dren.trubek DN do 130 mm | D49: m | E49: 37 | G49: =E49*F49 -> 0 | H49: 2e-05 | I49: =E49*H49 -> 0.00074 | J49: 0 | K49: =E49*J49 -> 0 | O49: 2 | AA49: 1 | AB49: 1 | AC49: 1 | AZ49: 1 | BA49: =IF(AZ49=1,G49,0) -> 0 | BB49: =IF(AZ49=2,G49,0) -> 0 | BC49: =IF(AZ49=3,G49,0) -> 0 | BD49: =IF(AZ49=4,G49,0) -> 0 | BE49: =IF(AZ49=5,G49,0) -> 0 | CA49: 1 | CB49: 1
A50: 27 | B50: 800 00 | C50: Napojení na kanalizaci | D50: kpl | E50: 2 | G50: =E50*F50 -> 0 | H50: 0 | I50: =E50*H50 -> 0 | K50: =E50*J50 -> 0 | O50: 2 | AA50: 12 | AB50: 0 | AC50: 40 | AZ50: 1 | BA50: =IF(AZ50=1,G50,0) -> 0 | BB50: =IF(AZ50=2,G50,0) -> 0 | BC50: =IF(AZ50=3,G50,0) -> 0 | BD50: =IF(AZ50=4,G50,0) -> 0 | BE50: =IF(AZ50=5,G50,0) -> 0 | CA50: 12 | CB50: 0
A51: 28 | B51: 69366055 | C51: GEOFILTEX 63 100% PP 63/30 300 g/m2 šíře do 8,8m | D51: m2 | E51: 28 | G51: =E51*F51 -> 0 | H51: 0.0003 | I51: =E51*H51 -> 0.0084 | K51: =E51*J51 -> 0 | O51: 2 | AA51: 3 | AB51: 1 | AC51: 69366055 | AZ51: 1 | BA51: =IF(AZ51=1,G51,0) -> 0 | BB51: =IF(AZ51=2,G51,0) -> 0 | BC51: =IF(AZ51=3,G51,0) -> 0 | BD51: =IF(AZ51=4,G51,0) -> 0 | BE51: =IF(AZ51=5,G51,0) -> 0 | CA51: 3 | CB51: 1
B52: Celkem za | C52: 8 Trubní vedení | G52: =SUM(G48:G51) -> 0 | I52: =SUM(I48:I51) -> 0.00914 | K52: =SUM(K48:K51) -> 0 | O52: 4 | BA52: =SUM(BA48:BA51) -> 0 | BB52: =SUM(BB48:BB51) -> 0 | BC52: =SUM(BC48:BC51) -> 0 | BD52: =SUM(BD48:BD51) -> 0 | BE52: =SUM(BE48:BE51) -> 0
A53: Díl: | B53: 91 | C53: Doplňující práce na komunikaci | O53: 1
A54: 29 | B54: 916111121U00 | C54: Osaz obrub dr kostka-opěra kamenivo | D54: m | E54: 21 | G54: =E54*F54 -> 0 | H54: 0.04329 | I54: =E54*H54 -> 0.90909 | J54: 0 | K54: =E54*J54 -> 0 | O54: 2 | AA54: 1 | AB54: 0 | AC54: 0 | AZ54: 1 | BA54: =IF(AZ54=1,G54,0) -> 0 | BB54: =IF(AZ54=2,G54,0) -> 0 | BC54: =IF(AZ54=3,G54,0) -> 0 | BD54: =IF(AZ54=4,G54,0) -> 0 | BE54: =IF(AZ54=5,G54,0) -> 0 | CA54: 1 | CB54: 0
C55: podklad bet.tvarovek z beton.cihel: | E55: 0 | M55: podklad bet.tvarovek z beton.cihel:
A56: 30 | B56: 59515000 | C56: Cihla betonová plná šedá CV - B P 10 29x14x6,5 cm | D56: kus | E56: 75.98 | G56: =E56*F56 -> 0 | H56: 0.0055 | I56: =E56*H56 -> 0.41789 | K56: =E56*J56 -> 0 | O56: 2 | AA56: 3 | AB56: 1 | AC56: 59515000 | AZ56: 1 | BA56: =IF(AZ56=1,G56,0) -> 0 | BB56: =IF(AZ56=2,G56,0) -> 0 | BC56: =IF(AZ56=3,G56,0) -> 0 | BD56: =IF(AZ56=4,G56,0) -> 0 | BE56: =IF(AZ56=5,G56,0) -> 0 | CA56: 3 | CB56: 1
B57: Celkem za | C57: 91 Doplňující práce na komunikaci | G57: =SUM(G53:G56) -> 0 | I57: =SUM(I53:I56) -> 1.32698 | K57: =SUM(K53:K56) -> 0 | O57: 4 | BA57: =SUM(BA53:BA56) -> 0 | BB57: =SUM(BB53:BB56) -> 0 | BC57: =SUM(BC53:BC56) -> 0 | BD57: =SUM(BD53:BD56) -> 0 | BE57: =SUM(BE53:BE56) -> 0
A58: Díl: | B58: 95 | C58: Dokončovací konstrukce na pozemních stavbách
A59: 31 | B59: 950 00 | C59: Ochrana stávajících podlah v interiéru | D59: m2 | E59: 50 | G59: =SUM(E59*F59) -> 0
A60: 32 | B60: 950 01 | C60: demontáž a následná montáž soklíkového pásku podlah | D60: m | E60: 50 | G60: =SUM(E60*F60) -> 0
B61: Celkem za | C61: 95 Dokončovací konstrukce na pozemních stavbách | G61: =SUM(G59:G60) -> 0
A62: Díl: | B62: 97 | C62: Prorážení otvorů | O62: 1
A63: 33 | B63: 978023251R00 | C63: Vysekání a úprava spár zdiva kamenného režného | D63: m2 | E63: 21 | G63: =E63*F63 -> 0 | H63: 0 | I63: =E63*H63 -> 0 | J63: -0.014 | K63: =E63*J63 -> -0.294 | O63: 2 | AA63: 1 | AB63: 1 | AC63: 1 | AZ63: 1 | BA63: =IF(AZ63=1,G63,0) -> 0 | BB63: =IF(AZ63=2,G63,0) -> 0 | BC63: =IF(AZ63=3,G63,0) -> 0 | BD63: =IF(AZ63=4,G63,0) -> 0 | BE63: =IF(AZ63=5,G63,0) -> 0 | CA63: 1 | CB63: 1
A64: 34 | B64: 978023252R00 | C64: Bourání 7 otvorů v anglických dvorkách | D64: m2 | E64: 3.85 | G64: =E64*F64 -> 0
B65: Celkem za | C65: 97 Prorážení otvorů | G65: =SUM(G62:G63) -> 0 | I65: =SUM(I62:I63) -> 0 | K65: =SUM(K62:K63) -> -0.294 | O65: 4 | BA65: =SUM(BA62:BA63) -> 0 | BB65: =SUM(BB62:BB63) -> 0 | BC65: =SUM(BC62:BC63) -> 0 | BD65: =SUM(BD62:BD63) -> 0 | BE65: =SUM(BE62:BE63) -> 0
A66: Díl: | B66: 99 | C66: Staveništní přesun hmot | O66: 1
A67: 35 | B67: 9992811051R00 | C67: odstranění omítkových vrstev a separátů, obnažení spár | D67: m2 | E67: 545 | G67: =SUM(E67*F67) -> 0
A68: 36 | B68: 999281105R00 | C68: Přesun hmot pro opravy a údržbu do výšky 6 m | D68: t | E68: 25.01 | G68: =E68*F68 -> 0 | H68: 0 | I68: =E68*H68 -> 0 | K68: =E68*J68 -> 0 | O68: 2 | AA68: 7 | AB68: 1 | AC68: 2 | AZ68: 1 | BA68: =IF(AZ68=1,G68,0) -> 0 | BB68: =IF(AZ68=2,G68,0) -> 0 | BC68: =IF(AZ68=3,G68,0) -> 0 | BD68: =IF(AZ68=4,G68,0) -> 0 | BE68: =IF(AZ68=5,G68,0) -> 0 | CA68: 7 | CB68: 1
B69: Celkem za | C69: 99 Staveništní přesun hmot | G69: =SUM(G66:G68) -> 0 | I69: =SUM(I66:I68) -> 0 | K69: =SUM(K66:K68) -> 0 | O69: 4 | BA69: =SUM(BA66:BA68) -> 0 | BB69: =SUM(BB66:BB68) -> 0 | BC69: =SUM(BC66:BC68) -> 0 | BD69: =SUM(BD66:BD68) -> 0 | BE69: =SUM(BE66:BE68) -> 0
A70: Díl: | B70: 711 | C70: Izolace proti vodě vnější a vnitřní | O70: 1
A71: 37 | B71: 711471051R00 | C71: Izol pr vodě V folie PVC polož volně | D71: m2 | E71: 18.27 | G71: =E71*F71 -> 0 | H71: 3e-05 | I71: =E71*H71 -> 0.0005481 | J71: 0 | K71: =E71*J71 -> 0 | O71: 2 | AA71: 1 | AB71: 7 | AC71: 7 | AZ71: 2 | BA71: =IF(AZ71=1,G71,0) -> 0 | BB71: =IF(AZ71=2,G71,0) -> 0 | BC71: =IF(AZ71=3,G71,0) -> 0 | BD71: =IF(AZ71=4,G71,0) -> 0 | BE71: =IF(AZ71=5,G71,0) -> 0 | CA71: 1 | CB71: 7
A72: 38 | B72: 711472052R00 | C72: Izol pr vodě S fólie z PE pol volně | D72: m2 | E72: 22.03 | G72: =E72*F72 -> 0 | H72: 0.00017 | I72: =E72*H72 -> 0.0037451 | J72: 0 | K72: =E72*J72 -> 0 | O72: 2 | AA72: 1 | AB72: 7 | AC72: 7 | AZ72: 2 | BA72: =IF(AZ72=1,G72,0) -> 0 | BB72: =IF(AZ72=2,G72,0) -> 0 | BC72: =IF(AZ72=3,G72,0) -> 0 | BD72: =IF(AZ72=4,G72,0) -> 0 | BE72: =IF(AZ72=5,G72,0) -> 0 | CA72: 1 | CB72: 7
A73: 39 | B73: 283220893 | C73: Fólie hydroizolační PVC tl. 0,8 mm | D73: m2 | E73: 46.53 | G73: =E73*F73 -> 0 | H73: 0.00102 | I73: =E73*H73 -> 0.0474606 | K73: =E73*J73 -> 0 | O73: 2 | AA73: 3 | AB73: 0 | AC73: 283220893 | AZ73: 2 | BA73: =IF(AZ73=1,G73,0) -> 0 | BB73: =IF(AZ73=2,G73,0) -> 0 | BC73: =IF(AZ73=3,G73,0) -> 0 | BD73: =IF(AZ73=4,G73,0) -> 0 | BE73: =IF(AZ73=5,G73,0) -> 0 | CA73: 3 | CB73: 0
A74: 40 | B74: 711472053R00 | C74: injektáž zdiva proti vzlínající vlhkosti | D74: m2 | E74: 135
A75: 41 | B75: 711472053R00 | C75: injektáž zdiva proti vzlínající vlhkosti včetně ochrany rozvodů plynu, topidel demontáže a zpětné montáže rozvodů elektro a podlah interiéru | D75: m2 | E75: 50 | G75: =E75*F75 -> 0
A76: 42 | B76: 711472054R00 | C76: hloubková impregnace a penetrace-např Kiesol standard | D76: m2 | E76: 74,1 | G76: =SUM(E76*F76) -> 0
A77: 43 | B77: 711472055R00 | C77: minerální sulfátostálá stěrka - 2. vrstvy | D77: m2 | E77: 80,4 | G77: =SUM(E77*F77) -> 0
A78: 44 | B78: 711472055R00 | C78: vyrovnání podkladu a dotěsnění spár ve zdivu maltou CSII | D78: m2 | E78: 74,1 | G78: =SUM(E78*F78) -> 0
A79: 45 | B79: 711472056R00 | C79: hybridní izolační stěrka 2 vrstvy např.multi Baudicht 2K | D79: m2 | E79: 74,1 | G79: =SUM(E79*F79) -> 0
A80: 46 | B80: 711472057R00 | C80: geotextilie 400 g- ochrana izolace | D80: m2 | E80: 33,9
A81: 47 | B81: 998711201R00 | C81: Přesun hmot pro izolace proti vodě, výšky do 6 m | D81: % | E81: =SUM(E71:E80) -> 271.83 | G81: =E81*F81 -> 0 | H81: 0 | I81: =E81*H81 -> 0 | K81: =E81*J81 -> 0 | O81: 2 | AA81: 7 | AB81: 1002 | AC81: 5 | AZ81: 2 | BA81: =IF(AZ81=1,G81,0) -> 0 | BB81: =IF(AZ81=2,G81,0) -> 0 | BC81: =IF(AZ81=3,G81,0) -> 0 | BD81: =IF(AZ81=4,G81,0) -> 0 | BE81: =IF(AZ81=5,G81,0) -> 0 | CA81: 7 | CB81: 1002
B82: Celkem za | C82: 711 Izolace proti vodě | G82: =SUM(G70:G78) -> 0 | I82: =SUM(I70:I81) -> 0.0517538 | K82: =SUM(K70:K81) -> 0 | O82: 4 | BA82: =SUM(BA70:BA81) -> 0 | BB82: =SUM(BB70:BB81) -> 0 | BC82: =SUM(BC70:BC81) -> 0 | BD82: =SUM(BD70:BD81) -> 0 | BE82: =SUM(BE70:BE81) -> 0
A83: Díl: | B83: 764 | C83: Konstrukce klempířské | O83: 1
A84: 48 | B84: 764 00 | C84: rošt nasávací atyp 800x600. Včetně redukční clony 300x200 a kotevní konstrukce | D84: kpl | E84: 3 | G84: =E84*F84 -> 0 | H84: 0 | I84: =E84*H84 -> 0 | K84: =E84*J84 -> 0 | O84: 2 | AA84: 12 | AB84: 0 | AC84: 42 | AZ84: 2 | BA84: =IF(AZ84=1,G84,0) -> 0 | BB84: =IF(AZ84=2,G84,0) -> 0 | BC84: =IF(AZ84=3,G84,0) -> 0 | BD84: =IF(AZ84=4,G84,0) -> 0 | BE84: =IF(AZ84=5,G84,0) -> 0 | CA84: 12 | CB84: 0
A85: 49 | B85: 76401 | C85: rošt nasávací atyp 800x600. Včetně redukční clony 300x200 a kotevní konstrukce | D85: kpl | E85: 1 | G85: =E85*F85 -> 0
A86: 50 | B86: 76402 | C86: Mříž včetně kotevní konstrukce | D86: ks | E86: 7 | G86: =E86*F86 -> 0
A87: 51 | B87: 998764201R00 | C87: Přesun hmot pro klempířské konstr., výšky do 6 m | D87: % | E87: 62 | G87: =E87*F87 -> 0 | H87: 0 | I87: =E87*H87 -> 0 | K87: =E87*J87 -> 0 | O87: 2 | AA87: 7 | AB87: 1002 | AC87: 5 | AZ87: 2 | BA87: =IF(AZ87=1,G87,0) -> 0 | BB87: =IF(AZ87=2,G87,0) -> 0 | BC87: =IF(AZ87=3,G87,0) -> 0 | BD87: =IF(AZ87=4,G87,0) -> 0 | BE87: =IF(AZ87=5,G87,0) -> 0 | CA87: 7 | CB87: 1002
B88: Celkem za | C88: 764 Konstrukce klempířské | G88: =SUM(G83:G87) -> 0 | I88: =SUM(I83:I87) -> 0 | K88: =SUM(K83:K87) -> 0 | O88: 4 | BA88: =SUM(BA83:BA87) -> 0 | BB88: =SUM(BB83:BB87) -> 0 | BC88: =SUM(BC83:BC87) -> 0 | BD88: =SUM(BD83:BD87) -> 0 | BE88: =SUM(BE83:BE87) -> 0
A89: Díl: | B89: 784 | C89: Malby
A90: 52 | B90: 784191101R00 | C90: Vnitřní sanační difúzní barva | D90: m2 | E90: 150 | G90: =E90*F90 -> 0
B91: Celkem za | C91: =CONCATENATE(B89," ",C89) -> 784 Malby | G91: =SUM(G89:G90) -> 0
A92: Díl: | B92: D96 | C92: Přesuny suti a vybouraných hmot | O92: 1
A93: 53 | B93: 979081111R00 | C93: Odvoz suti a vybour. hmot na skládku do 1 km | D93: t | E93: 46.05 | G93: =E93*F93 -> 0 | H93: 0 | I93: =E93*H93 -> 0 | K93: =E93*J93 -> 0 | O93: 2 | AA93: 8 | AB93: 0 | AC93: 3 | AZ93: 1 | BA93: =IF(AZ93=1,G93,0) -> 0 | BB93: =IF(AZ93=2,G93,0) -> 0 | BC93: =IF(AZ93=3,G93,0) -> 0 | BD93: =IF(AZ93=4,G93,0) -> 0 | BE93: =IF(AZ93=5,G93,0) -> 0 | CA93: 8 | CB93: 0
A94: 54 | B94: 979081121R00 | C94: Příplatek k odvozu za každý další 1 km | D94: t | E94: 81.22 | G94: 0 | H94: 0 | I94: 0 | K94: 0 | O94: 2 | AA94: 8 | AB94: 0 | AC94: 3 | AZ94: 1 | BA94: 0 | BB94: 0 | BC94: 0 | BD94: 0 | BE94: 0 | CA94: 8 | CB94: 0
A95: 55 | B95: 979082111R00 | C95: Vnitrostaveništní doprava suti do 10 m | D95: t | E95: 46.05 | G95: 0 | H95: 0 | I95: 0 | K95: 0 | O95: 2 | AA95: 8 | AB95: 0 | AC95: 3 | AZ95: 1 | BA95: 0 | BB95: 0 | BC95: 0 | BD95: 0 | BE95: 0 | CA95: 8 | CB95: 0
A96: 56 | B96: 979082121R00 | C96: Příplatek k vnitrost. dopravě suti za dalších 5 m | D96: t | E96: 65.13 | G96: 0 | H96: 0 | I96: 0 | K96: 0 | O96: 2 | AA96: 8 | AB96: 0 | AC96: 3 | AZ96: 1 | BA96: 0 | BB96: 0 | BC96: 0 | BD96: 0 | BE96: 0 | CA96: 8 | CB96: 0
A97: 57 | B97: 979087112R00 | C97: Nakládání suti na dopravní prostředky | D97: t | E97: 46.05 | G97: 0 | H97: 0 | I97: 0 | K97: 0 | O97: 2 | AA97: 8 | AB97: 0 | AC97: 3 | AZ97: 1 | BA97: 0 | BB97: 0 | BC97: 0 | BD97: 0 | BE97: 0 | CA97: 8 | CB97: 0
A98: 58 | B98: 979093111R00 | C98: Uložení suti na skládku bez zhutnění | D98: t | E98: 46.05 | G98: 0 | H98: 0 | I98: 0 | K98: 0 | O98: 2 | AA98: 8 | AB98: 0 | AC98: 3 | AZ98: 1 | BA98: 0 | BB98: 0 | BC98: 0 | BD98: 0 | BE98: 0 | CA98: 8 | CB98: 0
A99: 59 | B99: 979990001R00 | C99: Poplatek za skládku stavební suti | D99: t | E99: 46.05 | G99: 0 | H99: 0 | I99: 0 | K99: 0 | O99: 2 | AA99: 8 | AB99: 0 | AC99: 3 | AZ99: 1 | BA99: 0 | BB99: 0 | BC99: 0 | BD99: 0 | BE99: 0 | CA99: 8 | CB99: 0
B100: Celkem za | C100: D96 Přesuny suti a vybouraných hmot | G100: =SUM(G92:G99) -> 0 | I100: =SUM(I92:I99) -> 0 | K100: =SUM(K92:K99) -> 0 | O100: 4 | BA100: =SUM(BA92:BA99) -> 0 | BB100: =SUM(BB92:BB99) -> 0 | BC100: =SUM(BC92:BC99) -> 0 | BD100: =SUM(BD92:BD99) -> 0 | BE100: =SUM(BE92:BE99) -> 0
